bitfinex/quotes_SOLUSD_20250101
["timestamp","ask_amount","ask_price","bid_price","bid_amount"]
[1735726827914,23.776884,190.56,190.41,66.572]
[1735726828120,23.776884,190.51,190.41,66.572]
[1735726829529,20.0,190.48,190.41,66.572]
[1735726831530,20.0,190.48,190.42,0.78756317]
[1735726831715,20.0,190.48,190.41,66.572]
[1735726833623,26.2398,190.55,190.41,66.572]
[1735726833816,13.1192,190.56,190.42,0.78756202]
[1735726834350,13.1192,190.56,190.43,66.3993]
[1735726834527,13.1192,190.56,190.44,0.78736895]
[1735726835029,20.0,190.53,190.44,0.78736895]
[1735726837537,23.776884,190.54,190.44,58.7]
[1735726837733,20.0,190.51,190.43,66.3993]
[1735726838242,20.0,190.53,190.43,66.3993]
[1735726838734,13.1226,190.51,190.43,66.3993]
[1735726841947,13.1226,190.51,190.43,7.6993]
[1735726842143,13.124,190.49,190.43,7.6993]
[1735726842344,23.776884,190.48,190.43,7.6993]
[1735726846346,20.0,190.49,190.43,7.6993]
[1735726847946,20.0,190.47,190.43,7.6993]
[1735726852152,20.0,190.47,190.38,59.48768892]
[1735726852153,23.776884,190.46,190.36,7.819]
[1735726853338,23.776884,190.48,190.36,7.819]
[1735726853651,23.776884,190.44,190.36,7.819]
[1735726854455,13.1268,190.45,190.36,7.819]
[1735726858468,13.1268,190.45,190.36,66.519]
[1735726868088,13.1248,190.48,190.37,7.00426377]
[1735726868294,13.1248,190.48,190.38,7.7689]
[1735726868493,13.1248,190.48,190.39,59.48761505]
[1735726868891,20.0,190.48,190.4,66.4689]
[1735726869099,4.10608591,190.53,190.42,17.43039645]
[1735726869408,13.1206,190.54,190.44,66.4689]
[1735726870188,36.895384,190.57,190.45,0.78738298]
[1735726870352,13.1185,190.57,190.45,59.48738298]
[1735726870551,13.1185,190.57,190.46,7.7689]
[1735726870774,20.0,190.54,190.47,0.78728652]
[1735726872160,5.27110699,190.58,190.47,59.48728652]
[1735726872562,5.27110699,190.58,190.48,6.2165]
[1735726872766,5.27110699,190.58,190.49,0.78720254]
[1735726873876,5.27110699,190.58,190.49,59.48720254]
[1735726875791,13.1165,190.6,190.5,1.5524]
[1735726876090,13.1143,190.64,190.51,7.00359736]
[1735726876604,13.1143,190.64,190.52,11.19909645]
[1735726876772,13.1143,190.64,190.54,60.2376]
[1735726876968,5.27110699,190.65,190.55,0.78696255]
[1735726877511,5.27110699,190.65,190.56,6.2907]
[1735726877678,5.27110699,190.65,190.57,0.78685428]
[1735726879682,5.27110699,190.65,190.58,60.2376]
[1735726883606,20.0,190.65,190.58,60.2376]
[1735726888657,20.0,190.65,190.58,1.5376]
[1735726890656,13.1083,190.72,190.6,1.5376]
[1735726890847,13.1083,190.72,190.61,0.78664251]
[1735726891049,13.1083,190.72,190.62,64.9907]
[1735726891358,13.1083,190.72,190.63,0.78661309]
[1735726891559,13.1083,190.72,190.62,64.9907]
[1735726896752,13.1083,190.72,190.63,8.1867]
[1735726897556,13.1083,190.72,190.63,66.8867]
[1735726904573,23.776884,190.71,190.63,66.8867]
[1735726906566,23.776884,190.71,190.63,8.1867]
[1735726908444,13.1095,190.7,190.63,8.1867]
[1735726908867,31.48360699,190.75,190.63,8.1867]
[1735726909054,13.1077,190.73,190.63,8.1867]
[1735726912574,13.1077,190.73,190.63,66.8867]
[1735726915652,13.1077,190.73,190.63,8.1867]
[1735726916989,13.1077,190.73,190.63,8.97340432]
[1735726917357,13.1077,190.73,190.63,8.1867]
[1735726918778,13.1077,190.73,190.63,66.8867]
[1735726921592,13.1077,190.73,190.63,8.1867]
[1735726922258,13.1089,190.71,190.63,8.1867]
[1735726923891,33.1102,190.69,190.63,8.1867]
[1735726924259,5.27110699,190.68,190.63,8.1867]
[1735726924769,5.27110699,190.68,190.63,6.6091]
[1735726926567,20.0,190.64,190.59,1.6536]
[1735726926882,20.0,190.64,190.58,6.4849]
[1735726927256,23.776884,190.63,190.58,6.4849]
[1735726927866,13.115,190.62,190.58,6.4849]
[1735726928458,13.115,190.62,190.55,1.6536]
[1735726928660,20.0,190.59,190.55,1.6536]
[1735726929088,33.1171,190.59,190.55,1.6536]
[1735726929291,33.1171,190.59,190.53,6.4849]
[1735726931499,43.776884,190.58,190.53,6.4849]
[1735726931669,23.776884,190.56,190.53,6.4849]
[1735726932006,13.1161,190.61,190.53,6.4849]
[1735726933473,20.0,190.64,190.53,6.4849]
[1735726933676,20.0,190.63,190.53,6.4849]
[1735726934596,20.0,190.62,190.53,6.4849]
[1735726934799,33.115,190.62,190.53,6.4849]
[1735726935107,23.776884,190.61,190.53,6.4849]
[1735726943514,43.776884,190.63,190.53,6.4849]
[1735726943718,23.776884,190.61,190.53,6.4849]
[1735726943903,23.776884,190.57,190.53,6.4849]
[1735726944721,13.1192,190.56,190.53,6.4849]
[1735726967642,23.776884,190.55,190.53,6.4849]
[1735726971233,23.776884,190.55,190.51,1.6536]
[1735726981931,13.1192,190.56,190.51,1.6536]
[1735726995869,20.0,190.53,190.51,1.6536]
[1735727002477,9.9345869,190.59,190.51,1.6536]
[1735727002862,20.0,190.56,190.51,1.6536]
[1735727005879,3.9520188,190.64,190.52,6.1084]
[1735727006078,13.1144,190.63,190.54,1.6121]
[1735727006276,1.01865797,190.64,190.55,0.78700482]
[1735727006479,1.01865797,190.64,190.56,64.8084]
[1735727006870,21.01865797,190.64,190.56,64.8084]
[1735727011885,21.01865797,190.64,190.56,6.1084]
[1735727012679,1.5154,190.71,190.56,6.1084]
[1735727012680,13.1096,190.7,190.58,6.6084]
[1735727012865,13.1096,190.7,190.59,0.7867527]
[1735727013281,20.0,190.67,190.59,0.7867527]
[1735727014079,20.0,190.67,190.6,8.1723]
[1735727015299,20.0,190.67,190.6,66.8723]
[1735727016565,20.0,190.67,190.6,58.7]
[1735727016805,20.0,190.67,190.61,67.65904153]
[1735727017468,19.0921681,190.7,190.61,67.65904153]
[1735727017667,5.9825681,190.7,190.61,67.65904153]
[1735727020786,5.9825681,190.7,190.61,8.95904153]
[1735727022197,19.0920681,190.7,190.61,8.1723]
[1735727022408,20.0,190.66,190.61,8.1723]
[1735727023501,33.1128,190.66,190.61,8.1723]
[1735727024198,20.0,190.67,190.61,8.1723]
[1735727028203,20.0,190.67,190.62,0.78666752]
[1735727028503,5.98651548,190.75,190.62,0.78666752]
[1735727028693,20.0,190.7,190.62,59.48666752]
[1735727033094,20.0,190.7,190.61,66.8723]
[1735727034013,20.0,190.7,190.62,0.78669645]
[1735727034309,33.1097,190.7,190.62,0.78669645]
[1735727038589,20.0,190.69,190.62,0.78669645]
[1735727038885,20.0,190.69,190.62,59.48669645]
[1735727040619,33.1104,190.69,190.61,8.1723]
[1735727041714,33.1104,190.69,190.62,0.78672747]
[1735727043002,33.1104,190.69,190.61,8.95898391]
[1735727044006,33.1104,190.69,190.61,8.1723]
[1735727045040,20.0,190.64,190.61,8.1723]
[1735727050422,33.1136,190.65,190.61,8.1723]
[1735727050918,33.1136,190.65,190.55,66.4518]
[1735727056911,20.0,190.6,190.55,7.7518]
[1735727058229,20.0,190.62,190.55,7.7518]
[1735727058451,20.0,190.61,190.55,7.7518]
[1735727060126,33.1163,190.61,190.55,7.7518]
[1735727069665,13.1171,190.59,190.55,7.7518]
[1735727072574,43.776884,190.6,190.55,7.7518]
[1735727073570,13.1171,190.59,190.55,7.7518]
[1735727074704,13.1152,190.62,190.55,66.4518]
[1735727074962,5.9825681,190.68,190.56,59.48705894]
[1735727075154,20.0,190.64,190.56,59.48705894]
[1735727078586,13.1136,190.65,190.58,1.563]
[1735727078755,13.1136,190.65,190.59,0.78681847]
[1735727079882,13.1136,190.65,190.6,6.1654]
[1735727097295,5.9825681,190.68,190.6,6.1654]
[1735727097496,13.111,190.68,190.6,6.1654]
[1735727097796,25.07818358,190.71,190.61,0.78679665]
[1735727098001,19.0916681,190.71,190.61,2.32229665]
[1735727098209,19.0916681,190.71,190.61,61.02229665]
[1735727098390,19.0916681,190.71,190.62,6.5143]
[1735727098699,19.0916681,190.71,190.63,0.78660705]
[1735727099484,19.0916681,190.71,190.64,1.5355]
[1735727104913,26.2125,190.75,190.66,6.2168]
[1735727105095,13.107,190.74,190.66,6.2168]
[1735727107412,14.91019032,190.74,190.66,6.2168]
[1735727108711,13.1082,190.72,190.66,6.2168]
[1735727116924,49.30047979,190.93,190.73,7.9871]
[1735727117101,35.0,190.92,190.73,66.6871]
[1735727117297,49.30047979,190.93,190.73,66.6871]
[1735727117493,37.13584662,190.9,190.73,66.6871]
[1735727117713,23.776884,190.89,190.74,0.78614612]
[1735727118014,6.14885914,190.9,190.74,0.78614612]
[1735727118414,20.0,190.83,190.73,7.9871]
[1735727118602,13.0986,190.86,190.64,31.00839878]
[1735727118603,20.0,190.79,190.69,6.3471]
[1735727118807,23.776884,190.78,190.69,6.3471]
[1735727119019,7.43708692,190.77,190.69,6.3471]
[1735727119315,23.776884,190.76,190.69,6.3471]
[1735727127940,33.1061,190.75,190.69,6.3471]
[1735727131446,23.776884,190.74,190.69,6.3471]
[1735727140735,20.0,190.7,190.64,6.2686]
[1735727141914,20.0,190.71,190.64,6.2686]
[1735727142114,33.1094,190.71,190.64,6.2686]
[1735727142543,23.776884,190.7,190.64,6.2686]
[1735727143621,20.0,190.71,190.64,6.2686]
[1735727143622,13.1102,190.69,190.64,6.2686]
[1735727147847,20.0,190.64,190.59,1.7851921]
[1735727148350,20.0,190.64,190.56,8.24987673]
[1735727149247,20.0,190.64,190.55,59.48701439]
[1735727149540,20.0,190.64,190.54,64.9492]
[1735727151120,23.776884,190.63,190.54,6.2492]
[1735727151642,20.0,190.6,190.54,6.2492]
[1735727152622,20.0,190.6,190.53,58.7]
[1735727153239,20.0,190.58,190.53,58.7]
[1735727153447,20.0,190.56,190.48,65.73631117]
[1735727161352,1.6281,190.62,190.49,9.66149645]
[1735727161646,20.0,190.6,190.5,0.78711516]
[1735727162431,23.776884,190.59,190.5,0.78711516]
[1735727162634,23.776884,190.59,190.49,0.78710924]
[1735727164269,20.0,190.56,190.49,0.78710924]
[1735727164443,23.776884,190.57,190.48,6.2492]
[1735727164752,20.0,190.54,190.45,59.48736077]
[1735727165132,20.0,190.54,190.43,67.58231616]
[1735727165647,33.1206,190.54,190.43,67.58231616]
[1735727169935,13.1219,190.52,190.43,7.33561616]
[1735727170143,20.0,190.49,190.41,59.48752786]
[1735727173941,20.0,190.49,190.41,58.7]
[1735727174141,1.5641,190.48,190.39,59.4875561]
[1735727174655,21.5641,190.48,190.39,59.4875561]
[1735727177465,20.0,190.47,190.39,59.4875561]
[1735727177959,20.0,190.47,190.39,58.7]
[1735727178356,23.776884,190.47,190.39,58.7]
[1735727178944,20.0,190.45,190.35,66.03593818]
[1735727179351,20.0,190.45,190.35,75.69743463]
[1735727180043,14.6894,190.48,190.35,75.69743463]
[1735727180871,14.6894,190.48,190.36,9.66149645]
[1735727181088,14.6894,190.48,190.37,0.78768062]
[1735727182559,20.0,190.45,190.37,0.78768062]
[1735727183078,20.0,190.45,190.37,59.48768062]
[1735727183589,20.0,190.45,190.37,69.14917707]
[1735727183892,13.1227,190.51,190.41,9.66149645]
[1735727184073,13.1227,190.51,190.42,0.7874744]
[1735727185385,1.6151,190.53,190.42,69.14897085]
[1735727185593,1.6151,190.53,190.45,9.66149645]
[1735727185766,1.6151,190.53,190.46,59.48731357]
[1735727185968,13.1205,190.55,190.46,59.48731357]
[1735727196395,13.1212,190.53,190.46,58.7]
[1735727197211,20.0,190.5,190.46,58.7]
[1735727198091,20.0,190.5,190.41,1.5888]
[1735727198491,33.1239,190.5,190.41,1.5888]
[1735727198692,31.7392196,190.5,190.41,1.5888]
[1735727202311,23.776884,190.49,190.39,6.0202]
[1735727207103,23.776884,190.49,190.39,64.7202]
[1735727207499,23.776884,190.49,190.39,58.7]
[1735727207705,13.1247,190.48,190.39,58.7]
[1735727207902,20.0,190.44,190.39,58.7]
[1735727208110,20.0,190.44,190.38,58.7]
[1735727209323,20.0,190.43,190.38,58.7]
[1735727210322,20.0,190.43,190.35,65.32]
[1735727210528,23.776884,190.43,190.35,58.7]
[1735727211918,33.128,190.44,190.35,58.7]
[1735727212121,33.128,190.44,190.36,0.78785333]
[1735727212335,33.128,190.44,190.35,58.7]
[1735727214642,33.128,190.44,190.31,6.62]
[1735727214643,13.1288,190.42,190.31,65.32]
[1735727214816,13.1288,190.42,190.31,66.10793879]
[1735727215527,13.1288,190.42,190.32,1.79653656]
[1735727216241,13.1288,190.42,190.33,0.78795162]
[1735727216434,13.1288,190.42,190.33,10.44944807]
[1735727217646,13.1288,190.42,190.33,0.78795162]
[1735727218831,13.1288,190.42,190.32,0.78790383]
[1735727219132,13.1288,190.42,190.32,59.48790383]
[1735727219855,13.1288,190.42,190.32,69.14940028]
[1735727220349,13.1302,190.4,190.32,58.7]
[1735727221954,13.1302,190.4,190.28,59.48792103]
[1735727221955,20.0,190.37,190.28,59.48792103]
[1735727222151,20.0,190.37,190.28,58.7]
[1735727222441,1.6352,190.39,190.3,9.66149645]
[1735727222738,1.6352,190.39,190.31,0.78791684]
[1735727222936,10.21862624,190.4,190.31,10.44941329]
[1735727223339,10.21862624,190.4,190.31,0.78791684]
[1735727223552,10.21862624,190.4,190.3,12.24424271]
[1735727223959,20.0,190.4,190.31,68.36149645]
[1735727224131,20.0,190.4,190.32,59.48791406]
[1735727225182,36.905184,190.43,190.31,58.7]
[1735727225183,13.1295,190.41,190.31,58.7]
[1735727227241,13.1295,190.41,190.32,0.78796666]
[1735727227445,14.7627,190.44,190.34,9.66149645]
[1735727227650,14.7627,190.44,190.35,10.44925155]
[1735727228051,14.7627,190.44,190.35,0.7877551]
[1735727228660,14.7627,190.44,190.34,0.7878042]
[1735727231138,14.7627,190.44,190.34,59.4878042]
[1735727232464,13.1275,190.44,190.34,59.4878042]
[1735727233260,11.70594702,190.46,190.34,69.14930065]
[1735727233561,11.70594702,190.46,190.35,11.18639645]
[1735727233743,11.70594702,190.46,190.36,0.78769871]
[1735727234742,11.70594702,190.46,190.36,59.48769871]
[1735727235162,20.0,190.44,190.36,59.48769871]
[1735727237061,13.1255,190.47,190.36,59.48769871]
[1735727240171,13.1268,190.45,190.36,59.48769871]
[1735727241150,13.1268,190.45,190.36,58.7]
[1735727241764,13.1268,190.45,190.37,0.78773792]
[1735727242251,20.0,190.45,190.37,0.78773792]
[1735727243154,20.0,190.45,190.37,59.48773792]
[1735727248781,13.1247,190.48,190.37,59.48773792]
[1735727249083,13.1229,190.51,190.41,11.29699645]
[1735727249285,14.6547,190.54,190.42,69.14893961]
[1735727249460,13.1207,190.54,190.45,6.3232]
[1735727253088,13.1219,190.52,190.45,6.3232]
[1735727253289,13.1219,190.52,190.41,60.3355]
[1735727253290,23.776884,190.51,190.41,60.3355]
[1735727255092,20.0,190.5,190.41,60.3355]
[1735727255699,20.0,190.5,190.41,1.6355]
[1735727256388,33.1234,190.5,190.41,1.6355]
[1735727259186,23.776884,190.49,190.41,1.6355]
[1735727274193,13.1247,190.48,190.41,1.6355]
[1735727274398,23.776884,190.47,190.4,6.1613]
[1735727280018,19.08829599,190.48,190.4,6.1613]
[1735727280019,23.776884,190.45,190.4,6.1613]
[1735727283036,13.1241,190.49,190.4,6.1613]
[1735727283528,23.776884,190.48,190.4,6.1613]
[1735727286181,13.1241,190.49,190.4,6.1613]
[1735727288058,32.20639599,190.53,190.4,6.1613]
[1735727288059,5.96359599,190.53,190.41,1.6107]
[1735727288355,20.0,190.49,190.41,11.27219645]
[1735727288536,13.122,190.52,190.43,9.66149645]
[1735727288732,5.96359599,190.53,190.44,0.78747685]
[1735727288940,5.96359599,190.53,190.45,6.1751]
[1735727294056,7.43704291,190.54,190.45,6.1751]
[1735727294258,20.0,190.52,190.45,6.1751]
[1735727304065,20.0,190.52,190.45,6.1401919]
[1735727305567,20.0,190.52,190.41,61.09822138]
[1735727305770,20.0,190.52,190.41,60.3107]
[1735727306766,23.776884,190.51,190.41,60.3107]
[1735727306947,23.776884,190.51,190.41,66.5642]
[1735727313957,33.1225,190.52,190.41,66.5642]
[1735727314272,20.0,190.52,190.43,74.56169645]
[1735727314578,20.0,190.52,190.45,1.6496]
[1735727319574,23.776884,190.52,190.45,1.6496]
[1735727323474,13.1219,190.53,190.45,1.6496]
[1735727327376,20.0,190.54,190.45,1.6496]
[1735727327684,13.1192,190.56,190.46,0.78739195]
[1735727330157,13.1192,190.56,190.47,65.1565]
[1735727331203,13.1192,190.56,190.48,0.78726765]
[1735727331790,13.1192,190.56,190.47,65.1565]
[1735727335588,13.1192,190.56,190.47,65.94379582]
[1735727336589,13.1192,190.56,190.47,65.1565]
[1735727339890,13.1192,190.56,190.48,0.78727136]
[1735727343595,5.96359599,190.6,190.48,69.14876781]
[1735727343596,19.08069599,190.6,190.48,69.14876781]
[1735727343796,19.08069599,190.6,190.49,1.611]
[1735727344100,19.08069599,190.6,190.5,0.78715234]
[1735727344276,19.08069599,190.6,190.51,6.2656]
[1735727352304,19.08069599,190.6,190.51,64.9656]
[1735727352478,13.1171,190.6,190.51,64.9656]
[1735727355906,13.1171,190.6,190.52,59.48711029]
[1735727356504,20.55154291,190.63,190.53,1.5802]
[1735727356702,20.55154291,190.63,190.55,6.3681]
[1735727361502,5.96359599,190.65,190.56,1.5895]
[1735727361707,5.96359599,190.65,190.56,2.37648402]
[1735727363793,13.1124,190.66,190.56,2.37648402]
[1735727364408,13.1124,190.66,190.56,61.07648402]
[1735727376024,13.1137,190.64,190.56,60.2895]
[1735727378427,13.1137,190.64,190.56,1.5895]
[1735727379528,13.115,190.62,190.56,1.5895]
[1735727381825,13.115,190.62,190.55,6.3681]
[1735727383133,13.1164,190.6,190.55,6.3681]
[1735727383433,13.1164,190.6,190.52,1.6321]
[1735727398153,23.776884,190.59,190.52,1.6321]
[1735727399849,23.776884,190.59,190.51,6.1139]
[1735727401670,13.1164,190.6,190.51,6.1139]
[1735727403052,23.776884,190.59,190.51,6.1139]
[1735727403743,23.776884,190.59,190.51,5.1139]
[1735727413062,20.0,190.58,190.51,5.1139]
[1735727413279,43.776884,190.55,190.48,1.6185]
[1735727414548,56.897084,190.55,190.48,1.6185]
[1735727414974,64.33412691,190.55,190.48,1.6185]
[1735727416248,7.32567787,190.54,190.46,6.5502]
[1735727416449,23.776884,190.53,190.46,6.5502]
[1735727416648,31.21392691,190.53,190.46,6.5502]
[1735727417873,44.33562691,190.53,190.46,6.5502]
[1735727418054,20.0,190.5,190.46,6.5502]
[1735727427474,20.0,190.5,190.44,1.5648]
[1735727433932,20.0,190.5,190.44,2.35232453]
[1735727436129,5.96359599,190.54,190.45,6.3377]
[1735727436422,23.776884,190.55,190.46,0.78734322]
[1735727436791,15.0667389,190.58,190.46,0.78734322]
[1735727436792,13.4006389,190.58,190.46,0.78734322]
[1735727436993,13.4006389,190.58,190.46,59.48734322]
[1735727438524,13.4006389,190.58,190.47,11.27979645]
[1735727438729,13.4006389,190.58,190.48,65.82492857]
[1735727439096,13.4006389,190.58,190.48,75.48642502]
[1735727439295,13.1172,190.59,190.48,75.48642502]
[1735727440209,13.1172,190.59,190.48,65.82492857]
[1735727444268,43.776884,190.59,190.48,65.82492857]
[1735727453487,56.893984,190.59,190.48,65.82492857]
[1735727454191,23.776884,190.57,190.48,65.0377]
[1735727455052,36.895984,190.57,190.48,65.0377]
[1735727456287,20.0,190.54,190.48,6.3377]
[1735727458085,36.898084,190.53,190.48,6.3377]
[1735727458259,36.898084,190.53,190.47,1.6183]
[1735727458459,36.898084,190.53,190.44,6.1764]
[1735727460558,44.33512691,190.53,190.44,6.1764]
[1735727467204,13.1212,190.53,190.44,6.1764]
[1735727467677,36.898084,190.53,190.44,6.1764]
[1735727468197,13.1212,190.53,190.44,64.8764]
[1735727468495,13.1212,190.53,190.45,0.78742889]
[1735727471322,13.1212,190.53,190.44,64.8764]
[1735727471892,13.1212,190.53,190.45,0.78742561]
[1735727474799,20.55604291,190.57,190.46,66.4049]
[1735727475003,13.119,190.57,190.47,0.78726986]
[1735727475204,13.119,190.57,190.47,59.48726986]
[1735727475825,13.1165,190.6,190.49,1.5061]
[1735727476027,13.1165,190.6,190.49,2.29328126]
[1735727476535,23.776884,190.59,190.49,2.29328126]
[1735727479126,13.1165,190.6,190.49,2.29328126]
[1735727480823,13.1165,190.6,190.49,60.99328126]
[1735727483225,7.43704291,190.62,190.5,6.6582]
[1735727483526,7.43704291,190.62,190.53,65.3582]
[1735727483730,7.43704291,190.62,190.54,0.78701798]
[1735727485906,19.07809599,190.63,190.54,0.78701798]
[1735727486708,19.07809599,190.63,190.54,59.48701798]
[1735727487314,20.0,190.63,190.54,59.48701798]
[1735727487633,36.889184,190.66,190.54,59.48701798]
[1735727487833,36.889184,190.66,190.55,8.2433]
[1735727488126,36.889184,190.66,190.56,0.78689571]
[1735727488502,13.1123,190.66,190.56,59.48689571]
[1735727488708,1.97383901,190.68,190.58,11.24659645]
[1735727488908,17.09995698,190.7,190.59,0.78673818]
[1735727489110,17.09995698,190.7,190.6,65.3582]
[1735727489336,17.09995698,190.7,190.61,0.78670418]
[1735727490840,13.1102,190.7,190.61,0.78670418]
[1735727491015,13.1102,190.7,190.61,59.48670418]
[1735727491016,20.0,190.7,190.61,59.48670418]
[1735727491221,20.0,190.7,190.62,1.5851]
[1735727491413,20.0,190.7,190.63,0.78660765]
[1735727492747,7.43704291,190.73,190.64,64.9603]
[1735727492911,17.09725698,190.74,190.65,0.78649988]
[1735727493111,20.0,190.71,190.65,0.78649988]
[1735727494719,36.881584,190.77,190.65,59.48649988]
[1735727495344,20.0,190.74,190.66,66.6143]
[1735727495554,36.881584,190.77,190.67,0.7864788]
[1735727495921,36.881584,190.77,190.67,59.4864788]
[1735727495922,13.1047,190.77,190.67,59.4864788]
[1735727498918,20.0,190.77,190.67,59.4864788]
[1735727499339,13.1028,190.8,190.69,1.654]
[1735727499518,7.43704291,190.83,190.7,0.78625494]
[1735727499717,23.776884,190.82,190.71,6.2603]
[1735727499948,23.776884,190.82,190.72,0.78620141]
[1735727502031,20.0,190.8,190.72,59.48620141]
[1735727502653,7.43704291,190.83,190.72,59.48620141]
[1735727504857,7.43704291,190.83,190.73,60.3276]
[1735727505030,13.1006,190.84,190.75,6.4323]
[1735727505225,13.1006,190.84,190.76,0.78607886]
[1735727505950,23.776884,190.83,190.76,0.78607886]
[1735727506324,20.0,190.84,190.76,0.78607886]
[1735727507662,23.776884,190.86,190.76,59.48607886]
[1735727508239,23.776884,190.86,190.77,1.568]
[1735727508557,13.0979,190.87,190.77,1.568]
[1735727508558,7.43704291,190.88,190.78,0.78599283]
[1735727508733,7.43704291,190.88,190.78,59.48599283]
[1735727508933,7.43704291,190.88,190.79,6.1215]
[1735727509162,7.43704291,190.88,190.8,59.48590485]
[1735727509332,20.0,190.87,190.8,59.48590485]
[1735727510360,20.0,190.89,190.8,59.48590485]
[1735727510651,23.776884,190.88,190.8,59.48590485]
[1735727512056,23.776884,190.88,190.81,1.568]
[1735727513368,13.0957,190.91,190.82,0.78592223]
[1735727514237,23.776884,190.9,190.82,0.78592223]
[1735727516865,23.776884,190.9,190.82,59.48592223]
[1735727517039,13.0957,190.91,190.82,59.48592223]
[1735727517542,13.4006389,190.92,190.85,25.344884]
[1735727517743,26.1786,191.0,190.85,25.344884]
[1735727517744,26.1786,191.0,190.86,0.7856025]
[1735727517950,26.1786,191.0,190.87,6.1215]
[1735727518167,26.1786,191.0,190.88,0.78558768]
[1735727518344,13.0903,190.99,190.88,59.48558768]
[1735727518755,13.0903,190.99,190.89,1.568]
[1735727518938,13.0903,190.99,190.9,59.4854645]
[1735727519158,5.96359599,191.02,190.9,59.4854645]
[1735727519347,20.0,190.99,190.9,59.4854645]
[1735727519664,19.05119599,191.02,190.9,59.4854645]
[1735727520270,20.0,190.99,190.91,64.8215]
[1735727526381,7.73594291,191.07,190.92,59.48542378]
[1735727526382,13.0857,191.05,190.92,59.48542378]
[1735727526983,13.0857,191.05,190.94,1.5253]
[1735727527161,13.0857,191.05,190.95,0.78528641]
[1735727528064,13.0857,191.05,190.96,64.7681]
[1735727529464,20.0,191.02,190.94,1.5253]
[1735727530784,13.0883,191.01,190.94,1.5253]
[1735727531155,20.0,190.98,190.91,6.0681]
[1735727532982,20.0,191.02,190.91,64.7681]
[1735727533174,13.0863,191.04,190.91,64.7681]
[1735727533485,23.776884,191.03,190.91,64.7681]
[1735727534190,13.0876,191.02,190.91,64.7681]
[1735727536468,23.776884,191.01,190.91,6.0681]
[1735727536667,13.089,191.0,190.91,6.0681]
[1735727536999,23.776884,190.99,190.91,6.0681]
[1735727537998,13.0869,191.03,190.91,6.0681]
[1735727538705,20.0,191.0,190.91,64.7681]
[1735727541192,23.776884,191.02,190.91,64.7681]
[1735727543404,20.0,191.01,190.91,64.7681]
[1735727544607,33.0885,191.01,190.91,64.7681]
[1735727544801,23.776884,191.0,190.91,64.7681]
[1735727545114,20.0,190.97,190.91,6.0681]
[1735727547998,23.776884,190.96,190.91,6.0681]
[1735727549418,36.869084,190.96,190.9,1.6172]
[1735727549622,36.869084,190.96,190.87,6.5095]
[1735727552526,33.0939,190.93,190.87,6.5095]
[1735727552826,23.776884,190.92,190.87,6.5095]
[1735727555215,13.0951,190.91,190.86,1.5564]
[1735727555413,23.776884,190.9,190.83,6.3409]
[1735727556221,20.0,190.87,190.83,6.3409]
[1735727558925,13.0944,190.92,190.83,6.3409]
[1735727559122,5.96359599,190.96,190.84,0.78583888]
[1735727559530,23.776884,190.95,190.83,65.0409]
[1735727559907,20.0,190.93,190.83,65.0409]
[1735727560426,20.0,190.92,190.83,65.0409]
[1735727564315,23.776884,190.91,190.83,65.0409]
[1735727564828,23.776884,190.92,190.83,6.3409]
[1735727565732,23.776884,190.88,190.83,6.3409]
[1735727566027,19.05809599,190.92,190.83,7.12696481]
[1735727566327,20.0,190.89,190.83,7.12696481]
[1735727566730,20.0,190.89,190.83,6.3409]
[1735727569217,13.0945,190.92,190.83,6.3409]
[1735727569218,13.0945,190.92,190.83,7.12675739]
[1735727569732,13.0945,190.92,190.83,6.3409]
[1735727577450,13.0945,190.92,190.83,65.82674269]